bitfinex/quotes_ETHUSD_20250328
["timestamp","ask_amount","ask_price","bid_price","bid_amount"]
[1743154874751,13.03917565,1914.1,1913.9,0.7617]
[1743154875241,7.81482565,1914.0,1913.6,5.2257]
[1743154875444,7.81482565,1914.0,1913.5,11.02539]
[1743154875445,13.03973565,1914.0,1913.5,11.02539]
[1743154875646,7.81485565,1914.0,1913.6,5.2257]
[1743154876229,5.22505,1913.9,1913.6,5.2257]
[1743154876440,5.22493,1913.9,1913.7,0.7632]
[1743154876632,6.269892,1913.9,1913.5,5.021]
[1743154876839,6.269892,1913.9,1913.5,11.02579]
[1743154877146,17.47732915,1913.9,1913.5,11.02579]
[1743154877349,12.25222915,1913.9,1913.5,11.02579]
[1743154877650,5.22575,1913.6,1913.5,5.021]
[1743154878555,5.22602,1913.5,1913.3,5.021]
[1743154879354,8.37915368,1913.5,1913.2,0.7763]
[1743154879564,5.2264,1913.4,1913.2,0.7763]
[1743154880228,10.45287,1913.4,1913.2,0.7763]
[1743154880655,5.2264,1913.4,1913.2,0.7763]
[1743154881334,11.01523803,1913.5,1913.2,0.7763]
[1743154882627,5.2264,1913.4,1913.2,0.7763]
[1743154883954,5.22665,1913.3,1913.0,0.79]
[1743154884157,6.271352,1913.4,1913.0,11.03827]
[1743154884965,5.22639,1913.4,1913.0,11.03822]
[1743154886365,5.22658,1913.3,1913.0,11.03822]
[1743154886755,5.22639,1913.4,1913.0,11.03822]
[1743154887432,5.22639,1913.4,1913.0,16.26543]
[1743154887871,5.98233715,1913.5,1913.0,8.40116565]
[1743154888170,11.20844715,1913.5,1913.1,6.87028657]
[1743154889145,5.98233715,1913.5,1913.2,0.829]
[1743154889462,5.98233715,1913.5,1913.2,6.05568]
[1743154891163,5.98233715,1913.5,1913.3,5.22648]
[1743154891367,5.98233715,1913.5,1913.4,0.7874]
[1743154891570,5.22576,1913.6,1913.4,0.7874]
[1743154892650,5.22602,1913.5,1913.4,0.7874]
[1743154892851,5.22576,1913.6,1913.4,0.7874]
[1743154893268,10.45171,1913.6,1913.4,0.7874]
[1743154894263,5.22576,1913.6,1913.4,0.7874]
[1743154896872,13.7979828,1913.7,1913.4,0.7874]
[1743154897394,16.43347715,1913.7,1913.4,0.7874]
[1743154897674,5.22575,1913.6,1913.4,0.7874]
[1743154897879,11.20781715,1913.7,1913.4,0.7874]
[1743154898248,7.81510565,1913.9,1913.5,5.22598]
[1743154899078,7.81510565,1913.9,1913.5,10.45181]
[1743154899747,13.04019565,1913.9,1913.5,10.45181]
[1743154899948,13.04021565,1913.9,1913.5,5.22583]
[1743154900759,5.22523,1913.8,1913.5,5.22583]
[1743154900957,13.04027565,1913.9,1913.5,5.22583]
[1743154901279,13.04024565,1913.9,1913.5,5.22583]
[1743154902369,7.81510565,1913.9,1913.5,5.22583]
[1743154902557,5.98233715,1914.1,1913.7,0.7796]
[1743154902770,5.98233715,1914.1,1913.8,6.0048]
[1743154902969,5.22393,1914.3,1914.1,0.7796]
[1743154903482,5.22365,1914.4,1914.1,0.7796]
[1743154903652,13.7958328,1914.5,1914.1,0.7796]
[1743154903847,5.22358,1914.4,1914.1,6.00386]
[1743154904283,11.20566715,1914.5,1914.1,6.00388]
[1743154904455,5.22366,1914.4,1914.1,0.7796]
[1743154905247,5.22366,1914.4,1914.1,6.00391]
[1743154905448,13.7958328,1914.5,1914.1,6.00382]
[1743154905679,13.7958328,1914.5,1914.2,5.22406]
[1743154905881,5.98233715,1914.5,1914.2,5.22406]
[1743154906079,6.27052539,1914.6,1914.3,0.8142]
[1743154906458,11.49373539,1914.6,1914.3,0.8142]
[1743154906662,6.27052539,1914.6,1914.3,0.8142]
[1743154906863,11.49373539,1914.6,1914.3,0.8142]
[1743154907066,6.27052539,1914.6,1914.3,0.8142]
[1743154907757,5.22303,1914.6,1914.3,0.8142]
[1743154908080,10.44624,1914.6,1914.3,0.8142]
[1743154908286,10.44628,1914.6,1914.3,0.8142]
[1743154908593,5.2233,1914.5,1914.3,0.8142]
[1743154908791,5.22303,1914.6,1914.3,0.8142]
[1743154908954,4.01463477,1914.7,1914.4,5.22345]
[1743154909157,6.64731912,1914.7,1914.3,6.0379]
[1743154909361,10.44521,1914.8,1914.4,5.22343]
[1743154909558,8.22254,1914.8,1914.4,5.22343]
[1743154909776,8.22254,1914.8,1914.5,0.7695]
[1743154909976,5.98233715,1914.9,1914.6,5.22291]
[1743154910188,5.98233715,1914.9,1914.5,5.99279]
[1743154910390,11.20463715,1914.9,1914.5,6.85091557]
[1743154910709,11.20463715,1914.9,1914.5,5.99262]
[1743154910875,11.20463715,1914.9,1914.6,5.018]
[1743154912285,5.98233715,1914.9,1914.6,10.24089]
[1743154913385,6.25907733,1915.0,1914.6,10.2408]
[1743154913684,6.25907733,1915.0,1914.6,15.46371]
[1743154913885,1.03707733,1915.0,1914.7,6.02659]
[1743154914194,5.22166,1915.1,1914.7,6.02659]
[1743154914359,13.03370565,1915.1,1914.7,6.02659]
[1743154914563,5.22198,1915.0,1914.7,0.8039]
[1743154917765,8.86292603,1915.1,1914.7,6.02662]
[1743154917966,14.08479603,1915.1,1914.7,6.02662]
[1743154918596,5.22198,1915.0,1914.7,6.02662]
[1743154920490,6.27276038,1915.1,1914.7,6.0265]
[1743154920692,5.22221,1914.9,1914.7,0.8039]
[1743154920893,5.22221,1914.9,1914.4,0.7615]
[1743154920894,5.22289,1914.7,1914.4,0.7615]
[1743154921197,5.22312,1914.6,1914.5,5.016]
[1743154921896,5.22289,1914.7,1914.5,5.016]
[1743154922096,5.22222,1914.9,1914.5,5.016]
[1743154922476,5.22222,1914.9,1914.6,0.7745]
[1743154923083,10.44466,1914.9,1914.6,0.7745]
[1743154923475,5.2225,1914.8,1914.6,0.7745]
[1743154929376,5.22202,1915.0,1914.6,12.321748]
[1743154930099,5.22178,1915.1,1914.8,0.8201]
[1743154930304,8.22147,1915.2,1914.8,6.04254]
[1743154930470,5.22147,1915.2,1914.8,6.04245]
[1743154930671,5.22147,1915.2,1914.8,12.39648729]
[1743154931102,5.22147,1915.2,1914.9,5.22218]
[1743154931507,1.0239372,1915.4,1915.3,5.22111]
[1743154931710,5.98233715,1915.8,1915.3,2.59016565]
[1743154931914,0.05,1915.9,1915.6,5.22002]
[1743154932085,0.05,1915.9,1915.7,5.21985]
[1743154932489,0.05,1915.9,1915.7,6.01405]
[1743154932882,0.05,1915.9,1915.7,0.7942]
[1743154933313,5.26962,1915.9,1915.5,5.99684]
[1743154933512,5.26962,1915.9,1915.5,11.21727]
[1743154933684,5.26962,1915.9,1915.5,5.98684]
[1743154933884,7.85978565,1915.9,1915.5,5.98684]
[1743154934084,0.05,1915.9,1915.5,5.98684]
[1743154934284,5.26956,1915.9,1915.5,5.98684]
[1743154934607,5.26956,1915.9,1915.5,11.20723]
[1743154934781,0.05,1915.9,1915.6,5.22027]
[1743154935840,0.05,1915.9,1915.6,5.2724682]
[1743154935985,0.05,1915.9,1915.7,5.21995]
[1743154936379,0.05,1915.9,1915.8,5.013]
[1743154938498,5.26947,1915.9,1915.8,5.013]
[1743154949727,5.21993,1915.8,1915.5,0.7763]
[1743154949943,2.59016565,1915.7,1915.5,5.011]
[1743154950131,5.22032,1915.6,1915.5,5.011]
[1743154950695,3.0,1915.8,1915.5,10.23144]
[1743154951027,0.05,1915.9,1915.6,6.0314]
[1743154951327,10.48916,1915.9,1915.6,0.8112]
[1743154951632,5.26956,1915.9,1915.6,0.8112]
[1743154952025,5.26956,1915.9,1915.6,6.0314]
[1743154952427,5.26956,1915.9,1915.6,0.8112]
[1743154952627,5.26956,1915.9,1915.6,6.03146]
[1743154953931,5.26956,1915.9,1915.6,6.08365849]
[1743154954122,5.26956,1915.9,1915.6,6.08365845]
[1743154954326,0.05,1915.9,1915.6,13.0376117]
[1743154954633,0.05,1915.9,1915.6,12.98541325]
[1743154955130,0.05,1915.9,1915.6,7.76515325]
[1743154955540,7.85964565,1915.9,1915.6,6.03133]
[1743154957543,2.64016565,1915.9,1915.6,11.25153]
[1743154957708,2.64016565,1915.9,1915.6,6.03133]
[1743154958844,7.85974565,1915.9,1915.6,0.8112]
[1743154959346,7.85974565,1915.9,1915.6,6.0314]
[1743154959742,7.85974565,1915.9,1915.6,11.2516]
[1743154959911,0.05,1915.9,1915.6,12.877882]
[1743154960242,0.05,1915.9,1915.7,5.2199]
[1743154960541,0.05,1915.9,1915.8,6.04555]
[1743154963344,0.05,1915.9,1915.8,6.09773962]
[1743154963550,0.05,1915.9,1915.8,7.22950358]
[1743154963736,0.05,1915.9,1915.8,7.17731396]
[1743154964133,0.05,1915.9,1915.8,7.22950357]
[1743154964548,0.05,1915.9,1915.8,7.17731396]
[1743154967747,0.05,1915.9,1915.8,7.22950089]
[1743154968320,0.05,1915.9,1915.8,7.17731396]
[1743154969074,0.05,1915.9,1915.8,10.31057961]
[1743154975663,0.05,1915.9,1915.8,11.33792566]
[1743154977581,0.05,1915.9,1915.8,8.19776001]
[1743154977879,0.05,1915.9,1915.8,13.20576001]
[1743154978837,0.05,1915.9,1915.8,11.35951396]
[1743154980090,0.05,1915.9,1915.8,6.13976396]
[1743154980231,0.05,1915.9,1915.8,5.008]
[1743154981381,0.05,1915.9,1915.7,5.21988]
[1743154981566,0.05,1915.9,1915.8,5.007]
[1743154981764,5.26947,1915.9,1915.8,5.007]
[1743154982479,7.85963565,1915.9,1915.8,5.007]
[1743154983564,7.85963565,1915.9,1915.5,10.44088]
[1743154983763,13.07928565,1915.9,1915.6,5.007]
[1743154983970,7.85963565,1915.9,1915.6,5.007]
[1743154984169,13.07927565,1915.9,1915.6,5.007]
[1743154984370,7.85963565,1915.9,1915.6,5.007]
[1743154984975,5.21977,1915.8,1915.6,5.007]
[1743154986652,7.85963565,1915.9,1915.6,5.007]
[1743154986840,7.85963565,1915.9,1915.6,5.0591965]
[1743154987040,13.07929565,1915.9,1915.6,5.007]
[1743154987873,5.26947,1915.9,1915.6,5.007]
[1743154988039,10.48911,1915.9,1915.6,5.007]
[1743154988370,5.26947,1915.9,1915.6,5.05919649]
[1743154989658,5.26947,1915.9,1915.6,10.27945649]
[1743154989861,0.05,1915.9,1915.7,0.7793]
[1743154990062,0.05,1915.9,1915.8,5.27194648]
[1743154990454,0.05,1915.9,1915.8,5.21975]
[1743154990647,0.05,1915.9,1915.8,6.341634]
[1743154994480,0.05,1915.9,1915.8,7.118234]
[1743154995565,0.05,1915.9,1915.8,12.125234]
[1743154996679,0.05,1915.9,1915.8,11.00335]
[1743154997876,0.05,1915.9,1915.8,5.7836]
[1743154998079,0.05,1915.9,1915.8,5.007]
[1743155005763,0.05,1915.9,1915.8,5.05919059]
[1743155005962,0.05,1915.9,1915.8,5.007]
[1743155006986,0.05,1915.9,1915.8,5.006]
[1743155011000,0.05,1915.9,1915.8,10.22575]
[1743155016408,0.05,1915.9,1915.8,5.006]
[1743155016577,0.05,1915.9,1915.8,10.22575]
[1743155019609,0.05,1915.9,1915.8,5.006]
[1743155019811,5.93902,1915.8,1915.4,27.605]
[1743155020010,5.93902,1915.8,1915.2,5.005]
[1743155020011,2.59016565,1915.5,1915.2,5.005]
[1743155020307,7.81121565,1915.4,1915.2,5.005]
[1743155020809,7.81076565,1915.5,1915.2,10.22624]
[1743155021516,7.81076565,1915.5,1915.2,5.005]
[1743155021721,13.03152565,1915.5,1915.2,5.005]
[1743155022718,5.22085,1915.4,1915.2,5.005]
[1743155023423,5.22085,1915.4,1914.8,1.02240698]
[1743155023424,5.22143,1915.2,1914.9,5.22214]
[1743155023711,8.53050565,1915.3,1915.1,5.005]
[1743155024410,0.7191,1915.3,1915.1,5.005]
[1743155026698,5.22138,1915.2,1915.1,5.005]
[1743155026901,7.81154565,1915.2,1915.1,5.005]
[1743155027088,7.81154565,1915.2,1915.0,5.005]
[1743155027089,5.22172,1915.1,1915.0,5.005]
[1743155027286,8.53098565,1915.1,1915.0,5.005]
[1743155028103,5.22201,1915.0,1914.7,5.005]
[1743155028423,5.22226,1914.9,1914.7,5.005]
[1743155029623,5.22226,1914.9,1914.6,27.608]
[1743155029624,13.03480565,1914.9,1914.6,27.608]
[1743155029821,0.7191,1914.8,1914.7,5.005]
[1743155029997,5.94157,1914.8,1914.7,5.005]
[1743155030202,5.94157,1914.8,1914.6,27.608]
[1743155030203,5.22275,1914.7,1914.6,32.613]
[1743155030628,5.22275,1914.7,1914.6,27.608]
[1743155031226,6.69174746,1914.8,1914.6,27.608]
[1743155031726,11.91445746,1914.8,1914.6,27.608]
[1743155033004,11.91441746,1914.8,1914.6,27.608]
[1743155035323,5.94106,1915.0,1914.7,10.44514]
[1743155035531,0.7191,1915.0,1914.7,10.44514]
[1743155035826,13.03373565,1915.1,1914.7,5.22251]
[1743155036023,10.44357,1915.1,1914.7,5.22251]
[1743155036634,7.81226565,1915.0,1914.6,5.99689]
[1743155036933,8.53159565,1914.9,1914.5,10.22914]
[1743155037141,5.22253,1914.8,1914.5,10.22914]
[1743155037439,8.53159565,1914.9,1914.5,10.22914]
[1743155037440,11.1638,1914.9,1914.5,10.22905]
[1743155037833,5.94143,1914.9,1914.6,5.223]
[1743155038132,5.94143,1914.9,1914.6,5.22299]
[1743155038506,5.22252,1914.8,1914.5,10.22905]
[1743155039536,5.94141,1914.9,1914.5,10.22905]
[1743155039736,0.7191,1914.9,1914.5,10.22905]
[1743155039938,0.7191,1914.9,1914.6,5.22282]
[1743155040234,5.94106,1915.0,1914.6,10.44571]
[1743155040448,5.22234,1914.9,1914.6,5.22282]
[1743155040948,5.22223,1914.9,1914.6,5.22281]
[1743155041316,5.94106,1915.0,1914.6,10.4456]
[1743155041519,11.16317,1915.0,1914.6,5.22279]
[1743155041739,5.22221,1914.9,1914.6,5.22279]
[1743155042240,5.22167,1915.1,1914.7,0.7684]
[1743155042628,5.22167,1915.1,1914.7,5.99106]
[1743155042827,3.30926565,1915.2,1914.6,5.22302]
[1743155042828,11.16378,1914.9,1914.6,5.22302]
[1743155043021,5.94141,1914.9,1914.5,16.22073]
[1743155044038,5.94141,1914.9,1914.6,5.223]
[1743155045213,11.16378,1914.9,1914.6,5.223]
[1743155045414,11.16378,1914.9,1914.5,10.99754]
[1743155045742,11.1638,1914.9,1914.5,10.99754]
[1743155046240,5.94141,1914.9,1914.5,16.22074]
[1743155046445,5.94141,1914.9,1914.6,5.22299]
[1743155046946,8.53157565,1914.9,1914.5,10.99754]
[1743155047123,6.79456757,1914.9,1914.6,5.22301]
[1743155048840,5.22248,1914.8,1914.5,10.99754]
[1743155049141,5.22248,1914.8,1914.5,10.22914]
[1743155049645,14.60709322,1914.9,1914.5,15.45224]
[1743155049966,14.60709322,1914.9,1914.5,10.2291]
[1743155050745,5.22248,1914.8,1914.5,10.2291]
[1743155052452,8.53157565,1914.9,1914.5,15.45222]
[1743155052658,8.53157565,1914.9,1914.5,10.2291]
[1743155052960,13.75400565,1914.9,1914.5,10.2291]
[1743155053354,5.22247,1914.8,1914.5,10.2291]
[1743155055762,5.22247,1914.8,1914.5,5.006]
[1743155056066,5.22247,1914.8,1914.5,10.22928]
[1743155060166,0.7191,1914.9,1914.6,5.22299]
[1743155060470,5.2215,1915.2,1914.9,5.22204]
[1743155060766,5.2215,1915.2,1914.9,10.22704]
[1743155061266,11.99487783,1915.2,1914.9,5.005]
[1743155062267,5.22171,1915.1,1914.9,5.005]
[1743155063329,5.22143,1915.2,1914.9,5.005]
[1743155064352,10.44304,1915.2,1914.9,5.005]
[1743155064851,5.22143,1915.2,1914.9,5.005]
[1743155065036,5.22175,1915.1,1914.9,5.005]
[1743155065456,10.44361,1915.1,1914.9,5.005]
[1743155066323,5.22175,1915.1,1914.9,5.005]
[1743155066729,7.80766087,1915.0,1914.5,11.2716]
[1743155066936,5.22232,1914.9,1914.6,10.22701]
[1743155070553,5.22264,1914.8,1914.6,5.004]
[1743155070766,5.22264,1914.8,1914.4,5.22354]
[1743155070972,5.22283,1914.7,1914.5,5.004]
[1743155071273,5.22264,1914.8,1914.5,5.004]
[1743155071476,5.22264,1914.8,1914.5,10.22728]
[1743155072766,10.44529,1914.8,1914.5,5.004]
[1743155072966,5.22264,1914.8,1914.5,5.004]
[1743155073135,5.22264,1914.8,1914.5,10.22724]
[1743155073634,10.4453,1914.8,1914.5,5.004]
[1743155075246,5.2229,1914.7,1914.5,5.004]
[1743155076972,5.58569087,1914.9,1914.3,0.7733]
[1743155077175,5.22331,1914.5,1914.2,5.22398]
[1743155077471,10.4468,1914.5,1914.1,5.98986]
[1743155077985,5.22331,1914.5,1914.2,5.22409]
[1743155078190,10.44678,1914.5,1914.2,5.22409]
[1743155078549,5.22331,1914.5,1914.2,5.22409]
[1743155078750,10.44676,1914.5,1914.2,5.22409]
[1743155078983,10.44683,1914.5,1914.1,5.98973]
[1743155079280,10.44683,1914.5,1914.1,7.111166]
[1743155079655,5.22358,1914.4,1914.1,7.111166]
[1743155080351,5.22331,1914.5,1914.1,7.111126]
[1743155081081,5.22361,1914.4,1914.1,7.111126]
[1743155082082,5.22306,1914.6,1914.1,1.886936]
[1743155082380,5.22331,1914.5,1914.2,5.22386]
[1743155082594,5.22331,1914.5,1914.3,5.003]
[1743155083178,10.44628,1914.6,1914.3,5.003]
[1743155083482,5.22306,1914.6,1914.3,5.003]
[1743155084382,5.22306,1914.6,1914.3,10.22682]
[1743155084551,10.44626,1914.6,1914.3,5.003]
[1743155084756,5.22332,1914.5,1914.3,5.003]
[1743155085374,10.44619,1914.6,1914.3,5.003]
[1743155085568,5.22329,1914.5,1914.3,5.003]
[1743155088087,5.22306,1914.6,1914.3,5.003]
[1743155088289,5.22306,1914.6,1914.3,10.22679]
[1743155088788,10.44625,1914.6,1914.3,10.22679]
[1743155089160,5.2233,1914.5,1914.3,5.003]
[1743155091593,10.44676,1914.5,1914.3,5.003]
[1743155091886,5.22356,1914.4,1914.2,5.003]
[1743155092081,5.22384,1914.3,1914.2,5.003]
[1743155092277,5.94266,1914.4,1914.2,5.003]
[1743155092678,5.22356,1914.4,1914.2,5.003]
[1743155093866,10.4473,1914.4,1914.2,5.003]
[1743155094196,5.22356,1914.4,1914.2,5.003]
[1743155094697,10.44728,1914.4,1914.2,5.003]
[1743155095587,5.22356,1914.4,1914.2,5.003]
[1743155099702,4.92356,1914.4,1914.2,5.003]
[1743155100068,5.22334,1914.5,1914.2,8.33209315]
[1743155100268,5.2231,1914.6,1914.3,1.55216286]
[1743155100473,5.22229,1914.9,1914.6,5.22278]
[1743155100786,5.2223,1914.9,1914.6,7.55774286]
[1743155100978,5.22173,1915.1,1914.7,1.55216286]
[1743155101308,5.22201,1915.0,1914.6,13.83806515]
[1743155101512,10.44419,1915.0,1914.6,13.83806515]
[1743155102219,6.77439286,1914.9,1914.6,7.06290229]
[1743155102400,6.77439286,1914.9,1914.6,5.002]
[1743155102401,5.22275,1914.7,1914.6,5.002]
[1743155103020,5.22247,1914.8,1914.6,5.002]
[1743155103521,5.22247,1914.8,1914.5,5.22324]
[1743155103816,5.22346,1914.5,1914.3,5.002]
[1743155104617,5.22393,1914.3,1914.0,5.97644]
[1743155104905,5.22393,1914.3,1914.1,5.001]
[1743155105202,10.44799,1914.3,1914.1,5.001]
[1743155105689,5.22357,1914.4,1914.1,5.001]
[1743155106685,10.44732,1914.4,1914.1,5.001]
[1743155106900,5.22357,1914.4,1914.1,5.7826]
[1743155107106,10.44683,1914.5,1914.1,6.883312]
[1743155107303,5.2238,1914.4,1914.1,5.7826]
[1743155107806,5.22393,1914.3,1914.1,5.7826]
[1743155110009,5.22393,1914.3,1914.1,5.83483826]
[1743155110401,5.22393,1914.3,1914.1,5.7826]
[1743155111117,5.22432,1914.2,1913.8,6.03406]
[1743155111404,5.22448,1914.1,1913.9,5.001]
[1743155112013,5.22411,1914.2,1913.9,5.001]
[1743155112393,10.44841,1914.2,1913.9,5.001]
[1743155113405,3.30562053,1914.3,1913.9,5.001]
[1743155113607,5.22453,1914.1,1913.9,5.001]
[1743155113913,10.44917,1914.1,1913.9,5.001]
[1743155114506,10.44911,1914.1,1913.9,5.001]
[1743155115187,5.22466,1914.0,1913.9,5.001]
[1743155115389,5.22503,1913.9,1913.6,0.7727]
[1743155115590,5.22521,1913.8,1913.6,1.14797158]
[1743155115785,5.22521,1913.8,1913.6,5.001]
[1743155115990,5.22547,1913.7,1913.6,5.001]
[1743155117300,5.22526,1913.8,1913.6,5.001]
[1743155117718,10.45069,1913.8,1913.6,5.001]
[1743155118095,5.22547,1913.7,1913.6,5.001]
[1743155119320,5.94457,1913.7,1913.4,28.3815]
[1743155119620,5.2258,1913.6,1913.5,5.001]
[1743155119824,5.2258,1913.6,1913.4,32.63]
[1743155119987,10.45172,1913.6,1913.4,32.63]
[1743155120493,5.2258,1913.6,1913.4,32.63]
[1743155120795,10.45176,1913.6,1913.4,32.63]
[1743155120995,5.2258,1913.6,1913.4,32.63]
[1743155125496,5.22602,1913.5,1913.4,27.629]
[1743155125911,5.22696,1913.2,1913.0,0.7569]
[1743155126125,7.81313053,1913.3,1913.0,5.001]
[1743155126328,5.22693,1913.2,1913.0,5.001]
[1743155126628,10.45394,1913.2,1913.0,5.001]
[1743155126993,5.22711,1913.1,1913.0,5.001]
[1743155127226,5.22711,1913.1,1912.9,5.001]
[1743155127428,5.22617,1913.5,1913.1,5.22696]
[1743155127724,10.45235,1913.5,1913.1,5.22696]
[1743155127907,5.22617,1913.5,1913.1,5.22696]
[1743155128414,5.22617,1913.5,1913.1,10.45395]
[1743155128608,5.22639,1913.4,1913.1,5.22696]
[1743155128804,5.22639,1913.4,1913.0,6.05362]
[1743155129024,5.22639,1913.4,1913.0,7.739425]
[1743155129399,5.22664,1913.3,1913.1,5.001]
[1743155129811,5.22664,1913.3,1913.0,0.8264]
[1743155130024,5.22664,1913.3,1913.0,5.8284]
[1743155130236,10.45338,1913.3,1913.0,11.05574]
[1743155130533,5.22664,1913.3,1913.0,5.8284]
[1743155130731,10.45345,1913.3,1913.0,5.002]
[1743155131107,5.22687,1913.2,1913.0,5.002]
[1743155131309,10.45337,1913.3,1913.0,5.002]
[1743155131728,5.22664,1913.3,1913.1,0.24846052]
[1743155131934,10.45337,1913.3,1913.0,5.002]
[1743155132098,5.22684,1913.2,1913.1,0.27496536]
[1743155132303,5.22684,1913.2,1913.0,5.002]
[1743155132515,5.22684,1913.2,1913.1,0.27496536]
[1743155132733,5.22684,1913.2,1913.0,5.002]
[1743155132903,5.22684,1913.2,1913.1,0.27496536]
[1743155133104,5.22684,1913.2,1913.0,5.002]
[1743155133303,10.45337,1913.3,1913.1,0.27496536]
[1743155133505,10.45337,1913.3,1913.0,5.002]
[1743155133835,5.22702,1913.2,1913.1,0.27496536]
[1743155134136,5.22702,1913.2,1912.9,10.98638]
[1743155134347,5.22702,1913.2,1913.0,0.27496536]
[1743155135735,5.94612,1913.2,1913.0,0.27496536]
[1743155136031,5.22711,1913.1,1913.0,0.27496536]
[1743155136407,5.22711,1913.1,1912.8,5.002]
[1743155136609,5.22711,1913.1,1913.0,0.27496536]
[1743155137132,5.22711,1913.1,1912.8,10.2299]
[1743155137342,5.22711,1913.1,1912.9,0.27496536]
[1743155137654,5.22711,1913.1,1912.8,10.2299]
[1743155138139,5.22751,1913.0,1912.9,0.27496536]
[1743155138342,5.22711,1913.1,1912.8,5.002]
[1743155138541,10.45438,1913.1,1912.9,0.27496536]
[1743155138834,3.30562053,1913.0,1912.4,5.22894]
[1743155139024,7.81489053,1912.7,1912.4,10.23094]
[1743155139343,5.22858,1912.6,1912.4,5.002]
[1743155139506,5.22887,1912.5,1912.4,5.002]
[1743155140214,5.22887,1912.5,1912.2,5.002]
[1743155140416,5.22887,1912.5,1912.2,10.23156]
[1743155141035,10.45779,1912.5,1912.2,10.23156]
[1743155141209,5.22918,1912.4,1912.2,5.002]
[1743155141841,5.22877,1912.5,1912.2,5.002]
[1743155142244,5.22877,1912.5,1912.2,10.23156]
[1743155143039,7.81503053,1912.6,1912.2,10.23148]
[1743155143237,5.22795,1912.8,1912.3,0.7919]
[1743155143536,5.22795,1912.8,1912.5,5.22867]
[1743155143710,5.22768,1912.9,1912.6,11.02235]
[1743155144625,5.22796,1912.8,1912.6,5.002]
[1743155145019,5.22821,1912.7,1912.6,5.002]
[1743155145546,13.76162053,1912.8,1912.6,5.002]
[1743155145743,5.22821,1912.7,1912.6,5.002]
[1743155147328,0.7191,1912.8,1912.6,5.002]
[1743155147527,5.94708,1912.8,1912.6,5.002]
[1743155148148,5.22724,1913.1,1912.7,5.99347]
[1743155148328,10.4546,1913.1,1912.7,5.99347]
[1743155148656,5.22724,1913.1,1912.7,11.22151]
[1743155148861,10.45502,1913.0,1912.7,0.7654]
[1743155149048,5.22739,1913.0,1912.7,0.7654]
[1743155150932,13.04149053,1913.0,1912.7,0.7654]
[1743155151239,5.2277,1912.9,1912.7,0.7654]
[1743155151955,7.81391053,1913.0,1912.7,0.7654]
[1743155152276,13.04147053,1913.0,1912.7,0.7654]
[1743155152634,5.22767,1912.9,1912.7,0.7654]
[1743155153556,5.22767,1912.9,1912.8,0.28485119]
[1743155155238,5.22767,1912.9,1912.6,11.01038]
[1743155155439,5.22767,1912.9,1912.8,0.2834091]
[1743155155639,5.22767,1912.9,1912.6,11.01038]
[1743155155841,5.22767,1912.9,1912.8,0.2834091]
[1743155156039,5.22767,1912.9,1912.6,11.01034]
[1743155156257,7.81391053,1913.0,1912.8,0.2834091]
[1743155156433,5.22739,1913.0,1912.6,16.23864]
[1743155156763,5.22739,1913.0,1912.7,5.22815]
[1743155157062,5.22739,1913.0,1912.8,0.2834091]
[1743155159460,5.22713,1913.1,1912.8,0.2834091]
[1743155159761,10.45445,1913.1,1912.8,0.2834091]
[1743155160151,5.22713,1913.1,1912.8,5.5113091]
[1743155160349,5.94552,1913.4,1913.0,5.22726]
[1743155160549,10.45288,1913.4,1913.0,10.22926]
[1743155160730,5.22657,1913.3,1913.1,0.28107445]
[1743155160936,5.22657,1913.3,1913.0,10.22926]
[1743155161158,5.22684,1913.2,1913.1,0.28107445]
[1743155161361,5.22684,1913.2,1913.0,5.002]
[1743155161658,5.22684,1913.2,1913.1,0.28107445]
[1743155162363,5.22684,1913.2,1913.0,5.002]
[1743155162561,5.22684,1913.2,1913.1,0.28107445]
[1743155162765,5.22711,1913.1,1913.0,5.002]
[1743155162961,5.22711,1913.1,1913.0,5.28307445]
[1743155164858,7.81336053,1913.2,1913.0,5.28307445]
[1743155165172,13.04039053,1913.2,1913.0,5.28307445]
[1743155165356,5.22711,1913.1,1913.0,5.28307445]
[1743155167762,7.81336053,1913.2,1913.0,5.28307445]
[1743155167970,13.04039053,1913.2,1913.0,5.28307445]
[1743155168170,5.22711,1913.1,1913.0,5.28307445]
[1743155168772,10.45385,1913.2,1913.0,6.10877445]
[1743155169273,5.22711,1913.1,1913.0,6.10877445]
[1743155169765,10.45384,1913.2,1913.0,6.10877445]
[1743155170265,5.22684,1913.2,1913.0,6.10877445]
[1743155170853,10.45384,1913.2,1913.0,6.10877445]
[1743155171255,5.22684,1913.2,1913.0,6.10877445]
[1743155171657,10.45388,1913.2,1913.0,6.10877445]
[1743155172178,5.22662,1913.3,1913.0,6.10877445]
[1743155172348,5.22685,1913.2,1913.0,6.10877445]
[1743155173577,10.45389,1913.2,1913.0,6.10877445]
[1743155173779,5.22685,1913.2,1913.0,6.10877445]
[1743155177576,10.45392,1913.2,1913.0,6.10877445]
[1743155177879,5.22711,1913.1,1913.0,5.28307445]
[1743155178182,5.22685,1913.2,1913.0,5.28307445]
[1743155178478,5.22711,1913.1,1913.0,5.28307445]
[1743155178783,5.22711,1913.1,1913.0,0.28107445]
[1743155178784,11.53273053,1913.1,1913.0,0.28107445]
[1743155179078,5.22835,1912.7,1912.6,5.0]
[1743155182381,10.45609,1912.8,1912.6,5.0]
[1743155183260,5.22821,1912.7,1912.6,5.0]